bitfinex/quotes_BTCUSD_20250308
["timestamp","ask_amount","ask_price","bid_price","bid_amount"]
[1741425261016,0.3051627,86484.0,86483.0,0.0794398]
[1741425261583,0.0739067,86484.0,86483.0,0.0794398]
[1741425266622,0.0623447,86484.0,86483.0,0.0794398]
[1741425267236,0.0739067,86484.0,86483.0,0.0794398]
[1741425267578,0.0623447,86484.0,86483.0,0.3721608]
[1741425269558,0.03610239,86484.0,86483.0,0.3721608]
[1741425269745,7.152e-05,86484.0,86483.0,0.3721608]
[1741425271216,0.03610239,86484.0,86483.0,0.3721608]
[1741425274475,0.03610239,86484.0,86483.0,0.1293398]
[1741425274676,0.27892039,86484.0,86483.0,0.0794398]
[1741425275077,0.27892039,86484.0,86483.0,0.0003398]
[1741425277581,0.04766439,86484.0,86483.0,0.0003398]
[1741425282339,0.27892039,86484.0,86483.0,0.0003398]
[1741425286803,0.03414177,86485.0,86483.0,0.0003398]
[1741425287117,0.011562,86484.0,86483.0,0.00043381]
[1741425287679,0.242818,86484.0,86483.0,0.00043381]
[1741425289174,0.03414177,86485.0,86483.0,0.00043381]
[1741425289175,0.03414177,86485.0,86484.0,0.0795]
[1741425289378,0.30159148,86485.0,86484.0,0.0795]
[1741425290357,0.30159148,86485.0,86483.0,0.00043381]
[1741425290358,0.011562,86484.0,86483.0,0.00043381]
[1741425290589,0.04775871,86484.0,86483.0,0.00043381]
[1741425293017,0.04775871,86484.0,86483.0,0.00743381]
[1741425294508,0.04792861,86484.0,86483.0,0.00743381]
[1741425297239,0.27918461,86484.0,86483.0,0.00743381]
[1741425298439,0.04792861,86484.0,86483.0,0.00743381]
[1741425300261,0.27918461,86484.0,86483.0,0.00743381]
[1741425304605,0.04792861,86484.0,86483.0,0.00743381]
[1741425304991,0.07558572,86487.0,86483.0,0.00743381]
[1741425305187,0.011562,86484.0,86483.0,0.00743381]
[1741425305404,0.04776382,86484.0,86483.0,0.00743381]
[1741425305805,0.011562,86484.0,86483.0,0.00743381]
[1741425306010,0.242818,86484.0,86483.0,0.00043381]
[1741425306208,0.2429879,86484.0,86483.0,0.00743381]
[1741425306706,0.2429879,86484.0,86483.0,0.00043381]
[1741425307254,0.2429879,86484.0,86483.0,0.00743381]
[1741425307430,0.2791996,86484.0,86483.0,0.00743381]
[1741425310748,0.29733853,86484.0,86483.0,0.00743381]
[1741425315881,0.29733853,86484.0,86483.0,0.08893381]
[1741425316671,0.05252053,86484.0,86483.0,0.08893381]
[1741425316868,0.06408253,86484.0,86483.0,0.08893381]
[1741425317491,0.05252053,86484.0,86483.0,0.08893381]
[1741425317706,0.05252053,86484.0,86483.0,0.14919581]
[1741425317906,0.05269043,86484.0,86483.0,0.13763381]
[1741425318401,0.06425243,86484.0,86483.0,0.13763381]
[1741425322527,0.06425243,86484.0,86483.0,0.08893381]
[1741425323774,0.05269043,86484.0,86483.0,0.08893381]
[1741425323979,0.06425243,86484.0,86483.0,0.08893381]
[1741425325328,0.05269043,86484.0,86483.0,0.39479566]
[1741425325544,0.0001699,86484.0,86483.0,0.39479566]
[1741425326369,0.0001699,86484.0,86483.0,0.38779566]
[1741425326524,0.0001699,86484.0,86483.0,0.39479566]
[1741425326728,0.0001699,86484.0,86483.0,1.01649476]
[1741425326940,0.011558,86520.0,86512.0,0.24274]
[1741425327138,0.03636085,86513.0,86511.0,0.10896]
[1741425327353,0.011559,86512.0,86511.0,0.10896]
[1741425327569,0.24274,86512.0,86511.0,0.10896]
[1741425327970,0.05966856,86512.0,86511.0,0.10896]
[1741425328380,0.02351214,86512.0,86511.0,0.10896]
[1741425328581,0.0001699,86513.0,86512.0,0.078]
[1741425328783,0.0001699,86513.0,86512.0,0.089559]
[1741425328983,0.0001699,86513.0,86512.0,0.078]
[1741425329181,0.01830295,86513.0,86512.0,0.078]
[1741425329813,0.01830295,86513.0,86512.0,0.089559]
[1741425330387,0.01830295,86513.0,86512.0,0.096559]
[1741425331264,0.01830295,86513.0,86512.0,0.085]
[1741425334075,0.01830295,86513.0,86512.0,0.316181]
[1741425334276,0.01830295,86513.0,86512.0,0.085]
[1741425335110,0.01830295,86513.0,86512.0,0.316181]
[1741425335431,0.01830295,86513.0,86512.0,0.085]
[1741425336384,0.01830295,86513.0,86512.0,0.32074]
[1741425336828,0.01830295,86513.0,86512.0,0.32774]
[1741425339410,0.01830295,86513.0,86512.0,0.34228085]
[1741425339598,0.0001699,86513.0,86512.0,0.34228085]
[1741425342466,0.0183012,86513.0,86512.0,0.34228085]
[1741425343994,0.0183012,86513.0,86512.0,0.33528085]
[1741425344443,0.0183012,86513.0,86512.0,0.34228085]
[1741425344837,0.0183012,86513.0,86512.0,0.33528085]
[1741425346210,0.0183012,86513.0,86512.0,0.34228085]
[1741425349130,0.0183012,86513.0,86512.0,0.11109985]
[1741425349375,0.0183012,86513.0,86512.0,0.11225558]
[1741425349584,0.0183012,86513.0,86512.0,0.20846085]
[1741425349791,0.0183012,86513.0,86512.0,0.22001985]
[1741425350776,0.0183012,86513.0,86512.0,0.22117564]
[1741425353117,0.0183012,86513.0,86512.0,0.22001985]
[1741425354305,0.05,86584.0,86513.0,0.01454085]
[1741425354440,0.231161,86520.0,86513.0,0.01569661]
[1741425354640,0.231161,86520.0,86513.0,0.01454085]
[1741425354860,0.011558,86519.0,86513.0,0.01454085]
[1741425355091,0.011558,86519.0,86515.0,0.01454085]
[1741425355535,0.011558,86518.0,86514.0,0.01454085]
[1741425355742,0.011558,86518.0,86513.0,0.01569662]
[1741425356035,0.011558,86518.0,86514.0,0.01454085]
[1741425356723,0.011558,86518.0,86513.0,0.02154085]
[1741425357065,0.011558,86518.0,86513.0,0.01454085]
[1741425357587,0.011558,86518.0,86514.0,0.007]
[1741425357833,0.02968907,86518.0,86513.0,0.01454085]
[1741425358051,0.12369419,86522.0,86513.0,0.01454085]
[1741425358197,0.011558,86519.0,86514.0,0.00115576]
[1741425358400,0.011558,86519.0,86513.0,0.25727585]
[1741425358401,0.01813106,86517.0,86513.0,0.25727585]
[1741425358867,0.01813106,86517.0,86513.0,0.26427585]
[1741425360096,0.01813106,86517.0,86515.0,0.01454085]
[1741425360647,0.01813106,86517.0,86515.0,0.24571385]
[1741425360853,0.01813106,86517.0,86516.0,0.011558]
[1741425361348,0.01813106,86517.0,86515.0,0.24571385]
[1741425361724,0.01813106,86517.0,86515.0,0.25727185]
[1741425361966,0.01813106,86517.0,86515.0,0.26427185]
[1741425362918,0.01813106,86517.0,86515.0,0.03309885]
[1741425364592,0.01813106,86517.0,86515.0,0.03343845]
[1741425365763,0.01813106,86517.0,86516.0,0.231171]
[1741425366012,0.01813106,86517.0,86516.0,0.320529]
[1741425366237,0.01813106,86517.0,86516.0,0.33506985]
[1741425366647,0.01813106,86517.0,86516.0,0.38246985]
[1741425368525,0.01813106,86517.0,86516.0,0.38946985]
[1741425368865,0.0001699,86529.0,86516.0,0.38946985]
[1741425368866,0.0001699,86529.0,86528.0,0.242695]
[1741425369082,0.03637353,86529.0,86528.0,0.434675]
[1741425369263,0.0001699,86529.0,86528.0,0.434675]
[1741425369466,0.0287748,86529.0,86528.0,0.434675]
[1741425369846,0.06497843,86529.0,86528.0,0.434675]
[1741425370612,0.06497843,86529.0,86528.0,0.203536]
[1741425371016,0.06497843,86529.0,86528.0,0.210536]
[1741425371421,0.06497843,86529.0,86528.0,0.441675]
[1741425371624,0.08310801,86529.0,86528.0,0.441675]
[1741425373292,0.08310801,86529.0,86528.0,0.21352085]
[1741425374257,0.09466401,86529.0,86528.0,0.21352085]
[1741425374665,0.05450311,86529.0,86528.0,0.21352085]
[1741425374869,0.0001699,86529.0,86528.0,0.22623246]
[1741425375069,0.0001699,86529.0,86528.0,0.2748323]
[1741425375250,0.0001699,86529.0,86528.0,0.27367685]
[1741425376184,0.0001699,86529.0,86528.0,0.26667685]
[1741425376582,0.0001699,86529.0,86528.0,0.27367685]
[1741425377022,0.0001699,86529.0,86528.0,0.26667685]
[1741425377821,0.0001699,86529.0,86528.0,0.27367685]
[1741425378025,0.01829717,86529.0,86528.0,0.27367685]
[1741425380708,0.0001699,86529.0,86528.0,0.27367685]
[1741425381307,0.18274843,86554.0,86529.0,0.09474085]
[1741425381515,0.00011623,86554.0,86549.0,0.011554]
[1741425381710,0.00011623,86554.0,86549.0,0.242636]
[1741425382476,0.00011623,86554.0,86550.0,0.011554]
[1741425382676,0.00011623,86554.0,86551.0,0.24263]
[1741425382881,0.00011623,86554.0,86553.0,0.231072]
[1741425382882,0.02923395,86554.0,86553.0,0.231072]
[1741425383101,0.00011623,86554.0,86553.0,0.242625]
[1741425383491,0.00011623,86554.0,86553.0,0.351905]
[1741425383714,0.00011623,86554.0,86553.0,0.36644585]
[1741425384120,0.00011623,86554.0,86553.0,0.36690698]
[1741425384724,0.00011623,86554.0,86553.0,0.36644585]
[1741425384922,0.242586,86567.0,86561.0,0.011552]
[1741425385139,0.24297308,86567.0,86562.0,0.2426]
[1741425385270,0.00038708,86567.0,86563.0,0.120832]
[1741425385474,0.231037,86566.0,86563.0,0.10928]
[1741425385682,0.01193808,86567.0,86563.0,0.10928]
[1741425386108,0.01193808,86567.0,86563.0,0.09115802]
[1741425387111,0.02916795,86567.0,86563.0,0.09115802]
[1741425387345,0.00038708,86567.0,86563.0,0.09115802]
[1741425387978,0.00038708,86567.0,86566.0,0.231037]
[1741425388197,0.00038708,86567.0,86566.0,0.242588]
[1741425388843,0.02941785,86567.0,86564.0,0.242594]
[1741425389064,0.00038708,86567.0,86564.0,0.242594]
[1741425389279,0.00038708,86567.0,86564.0,0.23147134]
[1741425389454,0.00055688,86567.0,86564.0,0.23147134]
[1741425389657,0.00055688,86567.0,86565.0,0.242589]
[1741425390103,0.00055688,86567.0,86566.0,0.0785]
[1741425390924,0.01867964,86567.0,86566.0,0.0785]
[1741425391426,0.01867964,86567.0,86566.0,0.321088]
[1741425391649,0.01867964,86567.0,86566.0,0.328088]
[1741425392835,0.03630536,86567.0,86566.0,0.0855]
[1741425393153,0.00055688,86567.0,86566.0,0.0855]
[1741425393451,0.00055688,86567.0,86566.0,0.328088]
[1741425394119,0.00055688,86567.0,86566.0,0.321088]
[1741425394526,0.03712218,86567.0,86566.0,0.0785]
[1741425394727,0.00055688,86567.0,86566.0,0.0785]
[1741425395325,0.01210788,86567.0,86563.0,0.09115802]
[1741425396535,0.231037,86566.0,86563.0,0.09115802]
[1741425396688,0.242588,86566.0,86563.0,0.09115802]
[1741425396900,0.011552,86565.0,86563.0,0.09115802]
[1741425397285,0.242594,86564.0,86560.0,0.01454085]
[1741425397489,0.011552,86560.0,86559.0,0.10936]
[1741425400963,0.242634,86550.0,86549.0,0.16290085]
[1741425401177,0.242634,86550.0,86549.0,0.27222085]
[1741425401752,0.26075805,86550.0,86549.0,0.27222085]
[1741425401955,0.01812405,86550.0,86549.0,0.27222085]
[1741425402239,0.01812405,86550.0,86549.0,0.51485685]
[1741425402770,0.01812405,86550.0,86549.0,0.59675685]
[1741425409031,0.01812405,86550.0,86549.0,0.35412085]
[1741425409593,0.01812405,86550.0,86549.0,0.36567485]
[1741425410633,0.011553,86555.0,86549.0,0.36567485]
[1741425410806,0.011553,86555.0,86549.0,0.51485485]
[1741425410807,0.03612538,86554.0,86549.0,0.51485485]
[1741425411018,0.03612538,86554.0,86550.0,0.10924]
[1741425411736,0.04767838,86554.0,86550.0,0.10924]
[1741425412104,0.03612538,86553.0,86550.0,0.10924]
[1741425412875,0.04767838,86554.0,86549.0,0.50318085]
[1741425413074,0.03613694,86553.0,86550.0,0.1092]
[1741425414086,0.03613694,86553.0,86550.0,0.340277]
[1741425414291,0.03613694,86555.0,86552.0,0.091153]
[1741425414442,0.03613694,86555.0,86553.0,0.231072]
[1741425414844,0.03613694,86555.0,86553.0,0.242625]
[1741425415045,0.03613694,86555.0,86553.0,0.22450076]
[1741425415284,0.03613694,86555.0,86554.0,0.011553]
[1741425415625,0.011552,86562.0,86556.0,0.011553]
[1741425415832,0.03615382,86558.0,86556.0,0.011553]
[1741425416057,0.03615382,86557.0,86554.0,0.011553]
[1741425416259,0.03615382,86561.0,86555.0,0.242619]
[1741425416455,0.03615382,86556.0,86554.0,0.011553]
[1741425416758,0.011552,86559.0,86554.0,0.24262]
[1741425416964,0.03616156,86558.0,86554.0,0.24262]
[1741425417294,0.03616156,86557.0,86555.0,0.231066]
[1741425417540,0.03616156,86561.0,86557.0,0.242614]
[1741425417804,0.0001697,86564.0,86560.0,0.231052]
[1741425418011,0.03616482,86563.0,86558.0,0.011552]
[1741425418245,0.011552,86558.0,86552.0,0.310672]
[1741425418424,0.011552,86558.0,86552.0,0.30410146]
[1741425418627,0.03616482,86557.0,86552.0,0.30410146]
[1741425418831,0.08816748,86560.0,86553.0,0.011553]
[1741425419031,0.011552,86558.0,86553.0,0.011553]
[1741425420766,0.01812377,86557.0,86553.0,0.011553]
[1741425421906,0.01812377,86557.0,86554.0,0.011553]
[1741425422097,0.01812377,86557.0,86554.0,0.242622]
[1741425422428,0.2426,86562.0,86554.0,0.242622]
[1741425422577,0.011552,86562.0,86556.0,0.011553]
[1741425422783,0.011552,86561.0,86552.0,0.07302946]
[1741425424222,0.034769,86587.0,86552.0,0.07302946]
[1741425424223,0.03572549,86567.0,86563.0,0.231045]
[1741425424423,0.03572549,86567.0,86562.0,0.0799]
[1741425424667,0.03572549,86567.0,86563.0,0.1092]
[1741425425288,0.242576,86571.0,86563.0,0.1092]
[1741425425289,0.22924821,86571.0,86563.0,0.1092]
[1741425425472,0.01155,86573.0,86563.0,0.1092]
[1741425425700,0.011551,86572.0,86563.0,0.1092]
[1741425426158,0.0004,86579.0,86578.0,0.25709585]
[1741425426365,0.0004,86579.0,86578.0,0.44619585]
[1741425426576,0.0004,86579.0,86578.0,0.20364085]
[1741425426785,0.0004,86579.0,86578.0,0.20479574]
[1741425426988,0.0004,86579.0,86578.0,0.21634574]
[1741425428332,0.0185181,86579.0,86578.0,0.22334574]
[1741425428535,0.0185181,86579.0,86578.0,0.22219085]
[1741425428717,0.0185181,86579.0,86578.0,0.22334576]
[1741425428910,0.0185181,86579.0,86578.0,0.22219085]
[1741425429242,0.0185181,86579.0,86578.0,0.22334578]
[1741425429444,0.0185181,86579.0,86578.0,0.27019085]
[1741425434368,1e-07,86579.0,86578.0,0.89188995]
[1741425434514,1e-07,86579.0,86578.0,0.92773222]
[1741425434734,0.0131721,86580.0,86579.0,0.55709285]
[1741425434938,0.01328815,86580.0,86579.0,0.68845398]
[1741425435135,1.5e-07,86580.0,86579.0,0.68845398]
[1741425435552,0.001,86589.0,86588.0,0.38796685]
[1741425435762,0.001,86589.0,86588.0,0.96702595]
[1741425437753,0.01911404,86589.0,86588.0,0.96702595]
[1741425437965,0.01911404,86589.0,86588.0,0.85794595]
[1741425438163,0.01911404,86589.0,86588.0,0.9035651]
[1741425438794,0.01911404,86589.0,86588.0,0.91810595]
[1741425439792,0.25009004,86589.0,86588.0,0.5862991]
[1741425440028,0.26163804,86589.0,86588.0,0.2646]
[1741425440788,0.01911404,86589.0,86588.0,0.2646]
[1741425440996,0.01911404,86589.0,86588.0,0.42028885]
[1741425442090,0.04456994,86600.0,86599.0,0.011547]
[1741425442332,9.4e-07,86600.0,86599.0,0.26856354]
[1741425442525,9.4e-07,86600.0,86599.0,0.26740898]
[1741425442887,9.4e-07,86600.0,86599.0,0.02608785]
[1741425443087,9.4e-07,86600.0,86599.0,0.1370636]
[1741425443291,9.4e-07,86600.0,86599.0,0.13660247]
[1741425443637,9.4e-07,86600.0,86599.0,0.13660248]
[1741425443845,9.4e-07,86600.0,86593.0,0.01454085]
[1741425444020,9.4e-07,86600.0,86599.0,0.1094]
[1741425444227,0.01154794,86600.0,86599.0,0.1094]
[1741425444392,9.4e-07,86600.0,86599.0,0.1094]
[1741425444595,9.4e-07,86600.0,86599.0,0.1164]
[1741425444788,9.4e-07,86600.0,86599.0,0.127947]
[1741425445440,9.4e-07,86600.0,86599.0,0.120947]
[1741425445667,9.4e-07,86600.0,86599.0,0.127947]
[1741425446042,9.4e-07,86600.0,86599.0,0.120947]
[1741425446307,9.4e-07,86600.0,86599.0,0.127947]
[1741425446482,0.01811404,86600.0,86599.0,0.127947]
[1741425446895,0.01811404,86600.0,86599.0,0.14248785]
[1741425447064,0.01811404,86600.0,86599.0,0.21778785]
[1741425447407,0.01811404,86600.0,86599.0,0.2189425]
[1741425448137,4e-08,86603.0,86602.0,0.011547]
[1741425448311,4e-08,86603.0,86602.0,0.40254221]
[1741425448513,4e-08,86603.0,86602.0,0.4377533]
[1741425448686,0.01810961,86603.0,86602.0,0.4377533]
[1741425449104,0.01810961,86603.0,86602.0,0.40138785]
[1741425449306,5.1e-07,86604.0,86603.0,0.65732485]
[1741425449506,5.1e-07,86604.0,86603.0,0.70532485]
[1741425449914,0.01810996,86604.0,86603.0,0.70532485]
[1741425450808,0.01810996,86604.0,86603.0,0.68032485]
[1741425451009,1e-06,86609.0,86608.0,0.665771]
[1741425451232,1e-06,86609.0,86608.0,1.00201095]
[1741425451233,3e-08,86609.0,86608.0,1.00201095]
[1741425452585,3e-08,86609.0,86608.0,1.00901095]
[1741425453332,3e-08,86609.0,86608.0,0.96101095]
[1741425453534,3e-08,86609.0,86608.0,1.07069095]
[1741425453739,3e-08,86609.0,86608.0,0.6464701]
[1741425453955,3e-08,86609.0,86608.0,0.7561501]
[1741425454153,3e-08,86609.0,86608.0,0.77069095]
[1741425455600,0.01810958,86609.0,86608.0,0.77069095]
[1741425457048,0.01810958,86609.0,86608.0,1.07069095]
[1741425460692,0.01810958,86609.0,86608.0,0.96101095]
[1741425460889,0.01810958,86609.0,86608.0,1.07077095]
[1741425461790,0.01810958,86609.0,86608.0,1.07073095]
[1741425462001,0.01810958,86609.0,86608.0,0.96101095]
[1741425462204,0.01827938,86609.0,86608.0,1.07073095]
[1741425463120,0.01827938,86609.0,86608.0,0.007]
[1741425463324,0.02982538,86609.0,86608.0,0.007]
[1741425463734,0.04436621,86609.0,86608.0,0.007]
[1741425463958,0.00016983,86609.0,86608.0,0.249471]
[1741425464167,0.00016983,86609.0,86608.0,0.26401185]
[1741425464366,0.011543,86627.0,86620.0,0.011544]
[1741425464575,0.011543,86630.0,86624.0,0.011544]
[1741425464742,0.011543,86628.0,86621.0,0.011544]
[1741425465191,0.011543,86632.0,86627.0,0.011543]
[1741425465394,0.011543,86631.0,86624.0,0.011544]
[1741425465820,0.05583802,86632.0,86625.0,0.011544]
[1741425466042,0.04429502,86632.0,86629.0,0.230866]
[1741425466235,0.07120024,86637.0,86630.0,0.011543]
[1741425466355,0.07120024,86637.0,86631.0,0.242407]
[1741425466356,0.07131625,86637.0,86631.0,0.242407]
[1741425467174,0.00011601,86637.0,86631.0,0.242407]
[1741425467400,0.04481905,86637.0,86631.0,0.242407]
[1741425467626,0.00011601,86637.0,86631.0,0.242407]
[1741425467868,0.00011601,86637.0,86636.0,0.55693285]
[1741425468073,0.00011601,86637.0,86636.0,0.70513285]
[1741425468074,1e-08,86637.0,86636.0,0.70513285]
[1741425468541,1e-08,86637.0,86636.0,0.40513285]
[1741425468741,0.01810362,86637.0,86636.0,0.40513285]
[1741425469102,0.01810362,86637.0,86636.0,0.41113285]
[1741425469301,0.01810362,86637.0,86636.0,0.40513285]
[1741425469730,0.01810362,86637.0,86636.0,0.41213285]
[1741425469955,0.01810362,86637.0,86636.0,0.40513285]
[1741425470219,0.01810362,86637.0,86636.0,0.41213285]
[1741425470351,0.01810362,86637.0,86636.0,0.52237285]
[1741425471388,0.01810362,86637.0,86636.0,0.51537285]
[1741425472054,1e-08,86637.0,86636.0,0.51537285]
[1741425472698,1e-08,86637.0,86636.0,0.52237285]
[1741425473115,1e-08,86637.0,86636.0,0.82237285]
[1741425474693,1e-06,86659.0,86658.0,0.68517185]
[1741425474887,1e-06,86659.0,86658.0,0.79577185]
[1741425476260,1e-06,86659.0,86658.0,0.80277185]
[1741425476965,0.0180988,86659.0,86658.0,0.80277185]
[1741425477719,0.0180988,86659.0,86658.0,0.79577185]
[1741425477919,0.0180988,86659.0,86658.0,0.80277185]
[1741425480163,0.0180988,86659.0,86658.0,1.12447095]
[1741425484426,0.0180988,86659.0,86658.0,1.01387095]
[1741425484641,0.0180988,86659.0,86658.0,0.96697095]
[1741425484848,0.0180988,86659.0,86658.0,1.07737095]
[1741425485254,0.0180988,86659.0,86658.0,0.77737095]
[1741425485471,0.0180988,86659.0,86658.0,0.5710301]
[1741425485676,1e-06,86659.0,86658.0,0.6813901]
[1741425485885,1e-06,86659.0,86658.0,1.1813901]
[1741425486100,1e-06,86659.0,86658.0,0.859691]
[1741425486950,1e-06,86659.0,86658.0,0.87457125]
[1741425487912,0.0001707,86659.0,86658.0,0.87457125]
[1741425488288,0.01826939,86659.0,86658.0,0.64377925]
[1741425488981,0.01826939,86659.0,86658.0,0.63677925]
[1741425489182,0.01826939,86659.0,86658.0,0.52188025]
[1741425489409,0.02980839,86659.0,86658.0,0.5073394]
[1741425489614,0.02980839,86659.0,86658.0,0.5003394]
[1741425489783,0.02980839,86659.0,86658.0,0.5073394]
[1741425490182,0.02980839,86659.0,86658.0,0.5003394]
[1741425490435,0.02980839,86659.0,86658.0,0.5073394]
[1741425490641,0.02980839,86659.0,86658.0,0.5003394]
[1741425491119,0.02980839,86659.0,86658.0,0.5073394]
[1741425491700,0.07930839,86659.0,86658.0,0.5073394]
[1741425492045,0.09139659,86659.0,86658.0,0.5073394]
[1741425493342,0.09139659,86659.0,86658.0,0.5003394]
[1741425493579,0.09139659,86659.0,86658.0,0.5053394]
[1741425493955,0.09139659,86659.0,86658.0,0.5003394]
[1741425494193,0.09139659,86659.0,86658.0,0.5063394]
[1741425495620,0.04189659,86659.0,86658.0,0.5063394]
[1741425500742,0.0237979,86659.0,86658.0,0.5063394]
[1741425503360,0.12725065,86659.0,86658.0,0.5063394]
[1741425504270,0.12725065,86659.0,86658.0,0.48823697]
[1741425506174,0.0237979,86659.0,86658.0,0.48823697]
[1741425506825,0.0122589,86659.0,86658.0,0.74510882]
[1741425507977,0.0122589,86659.0,86658.0,0.73910882]
[1741425508175,0.0122589,86659.0,86658.0,0.74610882]
[1741425509354,0.0122589,86659.0,86658.0,0.48923697]
[1741425509495,0.2545869,86659.0,86658.0,0.47108042]
[1741425510248,0.2545869,86659.0,86658.0,0.46408042]
[1741425510426,0.2545869,86659.0,86658.0,0.47108042]
[1741425510626,0.2545869,86659.0,86658.0,0.46408042]
[1741425510831,0.27268941,86659.0,86658.0,0.46408042]
[1741425511034,0.27268941,86659.0,86658.0,0.47108042]
[1741425512657,0.26060121,86659.0,86658.0,0.47108042]
[1741425512862,0.25458697,86659.0,86658.0,0.47108042]
[1741425513223,0.2424987,86659.0,86658.0,0.47108042]
[1741425513629,0.25458677,86659.0,86658.0,0.47108042]
[1741425514835,0.11571152,86659.0,86658.0,0.47108042]
[1741425515055,0.12725052,86659.0,86658.0,0.47108042]
[1741425516949,0.02379777,86659.0,86658.0,0.47108042]
[1741425519311,0.05986914,86659.0,86658.0,0.47108042]
[1741425519714,0.04778107,86659.0,86658.0,0.47108042]
[1741425520143,0.15123382,86659.0,86658.0,0.47108042]
[1741425520349,0.15123382,86659.0,86658.0,0.46408042]
[1741425520526,0.15123382,86659.0,86658.0,0.47108042]
[1741425520722,0.16332185,86659.0,86658.0,0.47108042]
[1741425523485,0.0598691,86659.0,86658.0,0.47108042]
[1741425524991,0.3598691,86659.0,86658.0,0.47108042]
[1741425525199,0.34778107,86659.0,86658.0,0.47108042]
[1741425525399,0.35986981,86659.0,86658.0,0.47108042]
[1741425526181,0.35986981,86659.0,86644.0,0.14812]
[1741425526182,0.242367,86645.0,86644.0,0.14812]
[1741425526329,0.242367,86645.0,86642.0,0.11084]
[1741425526330,0.242373,86643.0,86642.0,0.11084]
[1741425526538,0.242373,86643.0,86630.0,0.083]
[1741425526539,0.011542,86636.0,86634.0,0.1108]
[1741425527690,0.011542,86636.0,86634.0,0.110752]
[1741425528092,0.242387,86639.0,86634.0,0.110752]
[1741425528324,0.0120894,86636.0,86634.0,0.110752]
[1741425528549,0.0120894,86636.0,86634.0,0.117752]
[1741425528684,0.242395,86635.0,86634.0,0.117752]
[1741425529494,0.28130013,86635.0,86634.0,0.117752]
[1741425529833,0.03890513,86635.0,86634.0,0.117752]
[1741425529987,0.05099454,86635.0,86634.0,0.117752]
[1741425530336,0.01208941,86635.0,86634.0,0.117752]
[1741425530536,0.01208941,86635.0,86634.0,0.348608]
[1741425530733,0.01208941,86635.0,86634.0,0.110752]
[1741425530914,0.01308941,86635.0,86634.0,0.117752]
[1741425532142,0.01308941,86635.0,86634.0,0.110752]
[1741425532349,0.01208941,86635.0,86634.0,0.110752]
[1741425533506,0.02363141,86635.0,86634.0,0.110752]
[1741425533700,0.09387484,86636.0,86634.0,0.110752]
[1741425533909,0.230856,86634.0,86631.0,0.01454085]
[1741425534112,0.242398,86634.0,86632.0,0.0924948]
[1741425534334,0.011542,86634.0,86632.0,0.0924948]
[1741425534742,0.011542,86635.0,86632.0,0.0924948]
[1741425535547,0.04992004,86637.0,86634.0,0.0003394]
[1741425535718,0.03837804,86637.0,86634.0,0.0003394]
[1741425535933,0.230844,86639.0,86634.0,0.0003394]
[1741425536414,0.242386,86639.0,86634.0,0.0003394]
[1741425537972,0.242386,86639.0,86634.0,0.0118814]
[1741425538176,0.011542,86638.0,86634.0,0.0003394]
[1741425538577,0.24239,86638.0,86634.0,0.0003394]
[1741425538960,0.011542,86638.0,86634.0,0.0003394]
[1741425539367,0.24239,86637.0,86634.0,0.0003394]
[1741425540848,0.2604942,86637.0,86634.0,0.0003394]
[1741425541707,0.0181042,86637.0,86634.0,0.2311944]
[1741425541908,0.0181042,86637.0,86634.0,0.0003394]
[1741425542110,0.28120228,86639.0,86632.0,0.32867509]
[1741425542448,0.03881628,86639.0,86636.0,0.23085]
[1741425542773,0.242378,86641.0,86635.0,0.011542]
[1741425542968,0.242384,86640.0,86634.0,0.242397]
[1741425543909,0.011542,86639.0,86634.0,0.242397]
[1741425544971,0.03779043,86641.0,86637.0,0.011542]
[1741425545179,0.242387,86639.0,86633.0,0.2424]
[1741425545577,0.23084,86640.0,86635.0,0.242394]
[1741425545774,0.230846,86638.0,86633.0,0.011542]
[1741425546544,0.01810516,86637.0,86633.0,0.011542]
[1741425546755,0.01810516,86637.0,86633.0,0.242398]
[1741425546954,0.01810516,86637.0,86632.0,0.32867309]
[1741425547417,0.24895516,86637.0,86632.0,0.32867309]
[1741425547797,0.24895516,86637.0,86632.0,0.32901249]
[1741425548008,0.26049716,86637.0,86632.0,0.32901249]
[1741425549021,0.2424,86633.0,86632.0,0.0003394]
[1741425549429,0.27850111,86633.0,86632.0,0.0003394]
[1741425550644,0.35460111,86633.0,86632.0,0.0003394]
[1741425551058,0.67522195,86633.0,86632.0,0.0003394]
[1741425555930,0.011544,86623.0,86612.0,0.10996]
[1741425556155,0.27853011,86623.0,86622.0,0.00045541]
[1741425556780,0.29664153,86623.0,86622.0,0.00045541]
[1741425557869,0.30873357,86623.0,86622.0,0.00045541]
[1741425558512,0.29664153,86623.0,86622.0,0.00045541]
[1741425558718,0.30873352,86623.0,86622.0,0.00045541]
[1741425559721,0.06630452,86623.0,86622.0,0.00045541]
[1741425559978,0.03020341,86623.0,86622.0,0.07975541]
[1741425560383,0.04174741,86623.0,86622.0,0.07975541]
[1741425563360,0.07779738,86623.0,86622.0,0.07975541]
[1741425563990,0.04174741,86623.0,86622.0,0.07975541]
[1741425566087,0.0777958,86623.0,86622.0,0.07975541]
[1741425566677,0.04174741,86623.0,86622.0,0.07975541]
[1741425567492,0.04174741,86623.0,86617.0,0.0474]
[1741425567724,0.011544,86618.0,86617.0,0.0474]
[1741425568687,0.242442,86618.0,86617.0,0.0474]
[1741425569005,0.230898,86618.0,86617.0,0.0474]
[1741425569218,0.011544,86619.0,86617.0,0.0474]
[1741425569396,0.01209199,86623.0,86617.0,0.289845]
[1741425570611,0.26054219,86622.0,86618.0,0.0792]
[1741425571015,0.02965419,86622.0,86618.0,0.0792]
[1741425571220,0.242434,86621.0,86618.0,0.0792]
[1741425571693,0.01811019,86622.0,86618.0,0.0792]
[1741425571904,0.01811019,86622.0,86619.0,0.230896]
[1741425572486,0.01811019,86622.0,86619.0,0.24244]
[1741425572728,0.011544,86619.0,86618.0,0.0003394]
[1741425576135,0.01811019,86622.0,86618.0,0.0003394]
[1741425576646,0.24899819,86622.0,86618.0,0.0003394]
[1741425576889,0.26054219,86622.0,86618.0,0.0003394]
[1741425578175,0.011544,86619.0,86618.0,0.0003394]
[1741425578909,0.04763616,86619.0,86618.0,0.0003394]
[1741425583209,0.03609216,86619.0,86618.0,0.38082225]
[1741425583419,0.10380011,86630.0,86629.0,0.33275285]
[1741425583633,0.01209061,86636.0,86631.0,0.02608385]
[1741425583825,0.03631166,86632.0,86631.0,0.01454085]
[1741425584036,0.0001697,86632.0,86631.0,0.24540485]
[1741425584451,0.0001697,86632.0,86631.0,0.25694785]
[1741425585693,0.0001697,86632.0,86631.0,0.30464785]
[1741425590254,0.0001697,86632.0,86631.0,0.38014785]
[1741425595569,0.0001697,86632.0,86631.0,0.48918785]
[1741425602076,0.0001697,86632.0,86631.0,0.81088695]